bitfinex/quotes_BTCUSD_20241023
["timestamp","ask_amount","ask_price","bid_price","bid_amount"]
[1729663815133,1e-06,67123.0,67122.0,0.65262424]
[1729663815358,1e-06,67123.0,67122.0,0.74177202]
[1729663815575,1e-06,67123.0,67122.0,0.65262424]
[1729663816484,1e-06,67125.0,67124.0,0.027]
[1729663816748,1e-06,67125.0,67124.0,0.94966964]
[1729663818544,1e-06,67125.0,67124.0,0.99422439]
[1729663819372,1e-06,67125.0,67124.0,1.01650526]
[1729663819582,1e-06,67126.0,67125.0,0.14618]
[1729663819791,1e-06,67126.0,67125.0,0.77169978]
[1729663820409,1e-06,67126.0,67125.0,0.70488009]
[1729663821705,1e-06,67126.0,67125.0,0.77168503]
[1729663821932,1e-06,67126.0,67125.0,0.57038503]
[1729663822149,1e-06,67126.0,67125.0,0.67964007]
[1729663822569,1e-06,67126.0,67125.0,0.78889511]
[1729663824555,1e-06,67126.0,67125.0,0.67964007]
[1729663824771,1e-06,67126.0,67125.0,0.61283513]
[1729663825661,1e-06,67126.0,67125.0,0.65736692]
[1729663827426,1e-06,67126.0,67125.0,0.65736806]
[1729663833917,1e-06,67126.0,67125.0,0.54811302]
[1729663834149,1e-06,67126.0,67125.0,0.65736806]
[1729663834419,1e-06,67126.0,67125.0,0.48858009]
[1729663834662,0.094001,67126.0,67125.0,0.27313915]
[1729663834912,0.094001,67126.0,67125.0,0.27813915]
[1729663835157,0.094001,67126.0,67125.0,0.12418]
[1729663835395,0.176601,67126.0,67125.0,0.12918]
[1729663835648,0.176601,67126.0,67125.0,0.11918]
[1729663835901,0.28585604,67126.0,67125.0,0.11918]
[1729663836618,0.176601,67126.0,67125.0,0.11918]
[1729663837627,0.176601,67126.0,67125.0,0.12083]
[1729663842820,0.176601,67126.0,67125.0,0.12583]
[1729663853194,0.094001,67126.0,67125.0,0.12583]
[1729663860583,0.094001,67126.0,67125.0,0.12083]
[1729663860800,0.094001,67126.0,67125.0,0.12583]
[1729663861490,0.094001,67126.0,67125.0,0.12083]
[1729663861720,0.094001,67126.0,67125.0,0.12583]
[1729663865432,0.094001,67126.0,67125.0,0.00165]
[1729663866581,0.094001,67126.0,67125.0,0.12083]
[1729663879508,0.094001,67126.0,67125.0,0.12583]
[1729663879731,0.094001,67126.0,67125.0,0.12083]
[1729663879969,0.13859231,67126.0,67125.0,0.12083]
[1729663880423,0.16088797,67126.0,67125.0,0.12083]
[1729663880642,0.16088797,67126.0,67125.0,0.12583]
[1729663881563,0.16088797,67126.0,67125.0,0.12083]
[1729663882767,0.16100124,67126.0,67125.0,0.12083]
[1729663883015,0.094001,67126.0,67125.0,0.12083]
[1729663883243,0.16100124,67126.0,67125.0,0.12083]
[1729663883546,0.094001,67126.0,67125.0,0.12583]
[1729663883809,0.16100124,67126.0,67125.0,0.12083]
[1729663884950,0.16100124,67126.0,67125.0,0.12583]
[1729663887035,0.094001,67126.0,67125.0,0.12583]
[1729663887250,0.16100124,67126.0,67125.0,0.12583]
[1729663887694,1e-06,67126.0,67125.0,0.12583]
[1729663889077,0.04467296,67126.0,67125.0,0.12583]
[1729663889314,1e-06,67126.0,67125.0,0.12583]
[1729663890223,0.06700592,67126.0,67125.0,0.12583]
[1729663890451,1e-06,67126.0,67125.0,0.12583]
[1729663890687,0.06700592,67126.0,67125.0,0.12583]
[1729663890915,1e-06,67126.0,67125.0,0.12583]
[1729663891130,0.04467446,67126.0,67125.0,0.12583]
[1729663892079,1e-06,67126.0,67125.0,0.12583]
[1729663893910,0.04467204,67126.0,67125.0,0.12583]
[1729663895019,1e-06,67126.0,67125.0,0.12583]
[1729663905904,0.06703459,67126.0,67125.0,0.12583]
[1729663906125,1e-06,67126.0,67125.0,0.12583]
[1729663906345,0.06703459,67126.0,67125.0,0.12583]
[1729663906775,1e-06,67126.0,67125.0,0.12583]
[1729663907339,0.06703459,67126.0,67125.0,0.12583]
[1729663907543,1e-06,67126.0,67125.0,0.12583]
[1729663908181,0.06703459,67126.0,67125.0,0.12583]
[1729663909247,1e-06,67126.0,67125.0,0.12583]
[1729663910157,0.06703459,67126.0,67125.0,0.12583]
[1729663910606,1e-06,67126.0,67125.0,0.12583]
[1729663910827,0.06703459,67126.0,67125.0,0.12583]
[1729663911046,1e-06,67126.0,67125.0,0.12583]
[1729663911263,0.06703459,67126.0,67125.0,0.12583]
[1729663911500,0.06703459,67126.0,67125.0,0.12783]
[1729663911714,1e-06,67126.0,67125.0,0.12783]
[1729663911927,0.06703459,67126.0,67125.0,0.12783]
[1729663913399,0.06704049,67126.0,67125.0,0.12783]
[1729663915676,1e-06,67126.0,67125.0,0.12783]
[1729663915886,0.06704136,67126.0,67125.0,0.12783]
[1729663917394,1e-06,67126.0,67125.0,0.12783]
[1729663917826,0.06704327,67126.0,67125.0,0.12783]
[1729663918043,1e-06,67126.0,67125.0,0.12783]
[1729663918801,0.06704465,67126.0,67125.0,0.12783]
[1729663919166,1e-06,67126.0,67125.0,0.12783]
[1729663919586,0.06704719,67126.0,67125.0,0.12783]
[1729663919788,1e-06,67126.0,67125.0,0.12783]
[1729663920045,0.06704637,67126.0,67125.0,0.12783]
[1729663920262,0.06704702,67126.0,67125.0,0.12783]
[1729663920506,1e-06,67126.0,67125.0,0.12783]
[1729663921187,0.06704752,67126.0,67125.0,0.12783]
[1729663921888,0.0670494,67126.0,67125.0,0.12783]
[1729663922126,1e-06,67126.0,67125.0,0.12783]
[1729663922338,0.15944941,67126.0,67125.0,0.00365]
[1729663922548,0.092401,67126.0,67125.0,0.12283]
[1729663922978,0.34680134,67126.0,67125.0,0.12283]
[1729663923469,0.16500347,67126.0,67125.0,0.12283]
[1729663923703,0.06705436,67126.0,67125.0,0.12283]
[1729663924183,0.25441279,67126.0,67125.0,0.12283]
[1729663924648,0.16501492,67126.0,67125.0,0.12283]
[1729663924884,0.08939887,67126.0,67125.0,0.12283]
[1729663931467,0.08940056,67126.0,67125.0,0.12283]
[1729663932381,0.16500605,67126.0,67125.0,0.12283]
[1729663932578,1e-06,67126.0,67125.0,0.12283]
[1729663932833,0.06705143,67126.0,67125.0,0.12283]
[1729663933760,0.06705143,67126.0,67125.0,0.12783]
[1729663941144,0.06704064,67126.0,67125.0,0.12783]
[1729663941800,0.06704064,67126.0,67125.0,0.12283]
[1729663944272,0.06704064,67126.0,67125.0,0.269552]
[1729663944507,1e-06,67126.0,67125.0,0.269552]
[1729663944745,0.04469476,67126.0,67125.0,0.269552]
[1729663945237,0.04469476,67126.0,67125.0,0.188952]
[1729663945470,1e-06,67126.0,67125.0,0.12783]
[1729663949162,0.06704064,67126.0,67125.0,0.12783]
[1729663949614,1e-06,67126.0,67125.0,0.12783]
[1729663953313,0.06704064,67126.0,67125.0,0.12783]
[1729663953548,1e-06,67126.0,67125.0,0.206102]
[1729663953832,1e-06,67126.0,67125.0,0.63921619]
[1729663954066,1e-06,67126.0,67125.0,0.64421619]
[1729663956189,1e-06,67126.0,67125.0,0.64921619]
[1729663956681,0.06703964,67138.0,67125.0,0.64921619]
[1729663956682,0.0446971,67146.0,67142.0,0.005]
[1729663956917,0.33705601,67151.0,67142.0,0.005]
[1729663956918,0.22532327,67144.0,67143.0,0.38736219]
[1729663957146,0.001688,67144.0,67143.0,0.38736219]
[1729663957833,0.26147637,67158.0,67155.0,0.238254]
[1729663958076,0.26147637,67158.0,67156.0,0.119124]
[1729663958329,0.26147637,67158.0,67155.0,0.119126]
[1729663958330,0.0378411,67158.0,67155.0,0.119126]
[1729663958566,0.0378411,67158.0,67149.0,0.005]
[1729663958567,0.11913,67154.0,67149.0,0.119136]
[1729663958801,0.11913,67154.0,67147.0,0.01]
[1729663958802,0.10925504,67151.0,67150.0,0.22363527]
[1729663959044,0.09,67153.0,67149.0,0.119137]
[1729663959516,0.09,67153.0,67150.0,0.119136]
[1729663959758,0.09,67153.0,67150.0,0.119135]
[1729663959992,0.084,67153.0,67150.0,0.119135]
[1729663960513,0.084,67153.0,67149.0,0.238276]
[1729663960748,0.084,67153.0,67152.0,0.119132]
[1729663962850,0.09,67153.0,67152.0,0.119132]
[1729663967611,0.090825,67153.0,67152.0,0.119132]
[1729663974209,0.0906457,67153.0,67152.0,0.119132]
[1729663976747,0.0906457,67153.0,67150.0,0.238272]
[1729663976978,0.0906457,67153.0,67152.0,0.119132]
[1729663978140,0.0906457,67153.0,67151.0,0.119133]
[1729663978375,0.0906457,67153.0,67152.0,0.119132]
[1729663982144,0.006825,67153.0,67152.0,0.119132]
[1729663992589,0.006825,67153.0,67152.0,0.120782]
[1729663994644,0.006825,67153.0,67152.0,0.225382]
[1729663999770,0.05135922,67153.0,67152.0,0.225382]
[1729664000215,0.006825,67153.0,67152.0,0.225382]
[1729664000678,0.05135922,67153.0,67152.0,0.225382]
[1729664001354,0.05146476,67153.0,67152.0,0.225382]
[1729664001819,0.07378464,67153.0,67152.0,0.225382]
[1729664002744,0.09610452,67153.0,67152.0,0.225382]
[1729664003186,0.26103693,67153.0,67152.0,0.225382]
[1729664004787,0.4077244,67153.0,67152.0,0.00165]
[1729664005100,0.37029197,67153.0,67152.0,0.00165]
[1729664005322,0.27499971,67153.0,67152.0,0.00165]
[1729664005550,0.18572019,67153.0,67152.0,0.120782]
[1729664005784,0.17175741,67153.0,67152.0,0.120782]
[1729664006010,0.18573086,67153.0,67152.0,0.00165]
[1729664006254,0.18573087,67153.0,67152.0,0.00165]
[1729664007637,0.29498591,67153.0,67152.0,0.00165]
[1729664008315,0.38435446,67153.0,67152.0,0.120782]
[1729664009449,0.29498591,67153.0,67152.0,0.120782]
[1729664009676,0.29498739,67153.0,67152.0,0.120782]
[1729664010369,0.28102304,67153.0,67152.0,0.120782]
[1729664010810,0.26114439,67153.0,67152.0,0.202582]
[1729664012611,0.26114439,67153.0,67152.0,0.30887353]
[1729664012847,0.07385044,67153.0,67152.0,0.30887353]
[1729664013090,0.07385044,67153.0,67152.0,0.207582]
[1729664013326,0.05150385,67153.0,67152.0,0.207582]
[1729664015717,0.05149852,67153.0,67152.0,0.207582]
[1729664017775,0.006825,67153.0,67152.0,0.207582]
[1729664018896,0.05149239,67153.0,67152.0,0.207582]
[1729664025300,0.05149034,67153.0,67152.0,0.207582]
[1729664032387,0.05149034,67153.0,67152.0,0.66085818]
[1729664032610,0.006825,67153.0,67152.0,0.67085818]
[1729664038708,0.006825,67153.0,67152.0,0.66585818]
[1729664038941,0.006825,67153.0,67152.0,0.67085818]
[1729664049663,0.006825,67153.0,67152.0,0.68085818]
[1729664053736,0.006825,67153.0,67152.0,0.79011322]
[1729664070634,0.006825,67153.0,67152.0,0.69801322]
[1729664073587,0.006825,67153.0,67152.0,0.58875818]
[1729664073807,0.006825,67153.0,67152.0,0.69801322]
[1729664078873,0.006825,67153.0,67152.0,0.79471322]
[1729664079131,1e-06,67153.0,67152.0,0.95041465]
[1729664079590,1e-06,67153.0,67152.0,0.95241465]
[1729664079822,1e-06,67153.0,67152.0,0.95041465]
[1729664089938,1e-06,67153.0,67152.0,1.06181578]
[1729664090163,1e-06,67153.0,67152.0,0.95041465]
[1729664095043,1e-06,67153.0,67152.0,1.06178761]
[1729664096195,1e-06,67153.0,67152.0,0.95041465]
[1729664096439,1e-06,67153.0,67152.0,1.06177991]
[1729664097984,1e-06,67153.0,67152.0,0.95041465]
[1729664098455,1e-06,67153.0,67152.0,1.06177231]
[1729664098929,1e-06,67153.0,67152.0,0.95041465]
[1729664099168,1e-06,67153.0,67152.0,1.06177519]
[1729664099660,1e-06,67153.0,67152.0,0.73190457]
[1729664099912,1e-06,67153.0,67152.0,1.06177231]
[1729664101333,1e-06,67153.0,67152.0,1.06377231]
[1729664102950,1e-06,67153.0,67152.0,0.95241465]
[1729664105237,1e-06,67153.0,67152.0,0.95041465]
[1729664105476,0.001688,67158.0,67157.0,0.144123]
[1729664105707,0.001688,67158.0,67157.0,0.65735602]
[1729664106148,0.001688,67158.0,67157.0,0.43884594]
[1729664106390,0.001688,67158.0,67157.0,0.59264069]
[1729664106632,0.001688,67158.0,67157.0,0.54810098]
[1729664109445,0.001688,67158.0,67157.0,0.59264294]
[1729664109917,0.001688,67158.0,67157.0,0.54687915]
[1729664110157,0.001688,67158.0,67157.0,0.55273237]
[1729664110392,0.001688,67158.0,67157.0,0.50819041]
[1729664112047,0.001688,67158.0,67157.0,0.50319041]
[1729664112274,0.001688,67158.0,67157.0,0.49819041]
[1729664112527,0.001688,67158.0,67157.0,0.6222262]
[1729664115117,0.001688,67158.0,67157.0,0.27808215]
[1729664115351,0.094888,67158.0,67157.0,0.27808215]
[1729664116044,0.108844,67158.0,67157.0,0.27808215]
[1729664116278,0.094888,67158.0,67157.0,0.27808215]
[1729664116521,0.094888,67158.0,67157.0,0.37808215]
[1729664117715,0.094888,67158.0,67157.0,0.51620287]
[1729664121563,0.001688,67158.0,67157.0,0.51620287]
[1729664122037,0.001688,67158.0,67157.0,0.62545791]
[1729664125634,0.001688,67158.0,67157.0,0.51620287]
[1729664126051,0.001688,67158.0,67157.0,0.62545791]
[1729664127517,0.001688,67158.0,67157.0,0.51620287]
[1729664127934,0.001688,67158.0,67157.0,0.62545791]
[1729664128138,0.001688,67158.0,67157.0,0.51620287]
[1729664146452,0.001688,67158.0,67157.0,0.37808215]
[1729664147566,0.177388,67158.0,67157.0,0.37808215]
[1729664148482,0.099588,67158.0,67157.0,0.37808215]
[1729664151016,0.001688,67158.0,67157.0,0.37808215]
[1729664153589,0.001479,67158.0,67157.0,0.37808215]
[1729664154948,0.001479,67158.0,67157.0,0.51091269]
[1729664163793,0.001479,67158.0,67157.0,0.62016773]
[1729664168729,0.001479,67158.0,67157.0,0.79746773]
[1729664171453,0.001479,67158.0,67157.0,0.91172277]
[1729664171669,0.001479,67158.0,67157.0,0.91337277]
[1729664171923,0.001479,67158.0,67157.0,0.80411773]
[1729664172165,0.00069946,67158.0,67157.0,0.80411773]
[1729664176814,0.00069946,67158.0,67157.0,0.91337277]
[1729664177048,0.00069946,67158.0,67157.0,0.80411773]
[1729664177487,0.00069946,67158.0,67157.0,0.91337277]
[1729664177703,0.00069946,67158.0,67157.0,0.80411773]
[1729664179410,0.00069946,67158.0,67157.0,0.91337277]
[1729664181378,0.00069946,67158.0,67157.0,0.80411773]
[1729664184179,0.00069946,67158.0,67157.0,0.91337277]
[1729664184907,0.00069946,67158.0,67157.0,0.80411773]
[1729664194026,0.00069946,67158.0,67157.0,0.70791773]
[1729664194923,0.00069946,67158.0,67157.0,0.81717277]
[1729664196037,0.00069946,67158.0,67157.0,0.70791773]
[1729664196715,0.00069946,67158.0,67157.0,0.81717277]
[1729664202700,0.00069946,67158.0,67157.0,0.70791773]
[1729664203523,0.00069946,67158.0,67157.0,0.81717277]
[1729664203975,0.00069946,67158.0,67157.0,0.70791773]
[1729664204607,0.00069946,67158.0,67157.0,0.81717277]
[1729664206600,0.00069946,67158.0,67157.0,0.70791773]
[1729664207906,0.00052025,67158.0,67157.0,0.70791773]
[1729664210789,0.00052025,67158.0,67157.0,0.81717277]
[1729664213777,0.00052025,67158.0,67157.0,0.861801]
[1729664214863,0.00052025,67158.0,67157.0,0.81717277]
[1729664216219,0.00052025,67158.0,67157.0,1.16369839]
[1729664216480,0.00052025,67158.0,67157.0,1.09662944]
[1729664216690,0.00052025,67158.0,67157.0,0.9873744]
[1729664217384,0.00052025,67158.0,67157.0,1.09862944]
[1729664218536,0.22363527,67179.0,67178.0,0.129086]
[1729664218754,0.22363527,67179.0,67178.0,0.33433702]
[1729664218983,0.04466422,67185.0,67184.0,0.119075]
[1729664219195,0.21952713,67186.0,67185.0,0.119074]
[1729664219658,0.1749,67186.0,67185.0,0.119074]
[1729664220820,0.175725,67186.0,67185.0,0.119074]
[1729664221035,0.175725,67186.0,67185.0,0.22824932]
[1729664221686,0.175725,67186.0,67185.0,0.119074]
[1729664222371,0.000825,67186.0,67185.0,0.71092346]
[1729664222588,0.000825,67186.0,67185.0,0.48728819]
[1729664223070,0.000825,67186.0,67185.0,0.37803315]
[1729664223290,0.0822,67192.0,67185.0,0.37803315]
[1729664223291,0.080405,67192.0,67191.0,0.119063]
[1729664223513,0.080405,67192.0,67191.0,0.26802215]
[1729664223724,0.080405,67192.0,67191.0,0.27302215]
[1729664223957,0.094386,67193.0,67192.0,0.119061]
[1729664224184,0.094386,67193.0,67192.0,0.37818777]
[1729664224395,0.094386,67193.0,67192.0,0.38318777]
[1729664226219,0.100376,67193.0,67192.0,0.38318777]
[1729664231264,0.007676,67193.0,67192.0,0.48818777]
[1729664233234,0.007676,67193.0,67192.0,0.37802015]
[1729664233977,0.185076,67193.0,67192.0,0.229061]
[1729664235435,0.102076,67193.0,67192.0,0.229061]
[1729664238056,0.007676,67193.0,67192.0,0.229061]
[1729664238289,0.007676,67193.0,67192.0,0.3234072]
[1729664238518,0.007676,67193.0,67192.0,0.47236635]
[1729664240609,0.007676,67193.0,67192.0,0.58162139]
[1729664241069,0.007676,67193.0,67192.0,0.47236635]
[1729664241507,0.007676,67193.0,67192.0,0.58662139]
[1729664241731,0.007676,67193.0,67192.0,0.66322139]
[1729664242464,0.007676,67193.0,67192.0,0.66889005]
[1729664244361,0.007676,67193.0,67192.0,0.89252532]
[1729664244571,0.007676,67193.0,67192.0,0.76389005]
[1729664245932,0.007676,67193.0,67192.0,0.87314509]
[1729664247121,0.007676,67193.0,67192.0,0.76389005]
[1729664255100,0.007676,67193.0,67192.0,0.76553805]
[1729664260905,0.007676,67193.0,67192.0,0.87479309]
[1729664261605,0.007676,67193.0,67192.0,0.76553805]
[1729664261819,0.007676,67193.0,67192.0,0.87479309]
[1729664262875,0.007676,67193.0,67192.0,0.76553805]
[1729664268119,0.007676,67193.0,67192.0,0.87479309]
[1729664268345,0.007676,67193.0,67192.0,0.76553805]
[1729664269672,0.007676,67193.0,67192.0,0.87479309]
[1729664271251,0.007676,67193.0,67192.0,0.76553805]
[1729664271984,1e-08,67194.0,67193.0,0.23406]
[1729664272230,1e-08,67194.0,67193.0,0.47992336]
[1729664273608,1e-08,67194.0,67193.0,0.46133707]
[1729664273863,1e-08,67194.0,67193.0,0.57059211]
[1729664274978,1e-08,67194.0,67193.0,0.60359211]
[1729664275230,0.0978,67212.0,67211.0,0.124028]
[1729664275536,0.0978,67212.0,67211.0,0.40082385]
[1729664276004,0.0978,67212.0,67211.0,0.27298715]
[1729664277347,0.0978,67212.0,67211.0,0.27872926]
[1729664278458,0.07559,67216.0,67215.0,0.129021]
[1729664278696,9e-05,67216.0,67215.0,0.58158139]
[1729664278934,9e-05,67216.0,67215.0,0.49090595]
[1729664279155,9e-05,67216.0,67215.0,0.47232635]
[1729664280364,9e-05,67216.0,67215.0,0.37798015]
[1729664282132,9e-05,67216.0,67215.0,0.38298015]
[1729664285111,9e-05,67216.0,67215.0,0.49223519]
[1729664289250,9e-05,67216.0,67215.0,0.66803519]
[1729664290195,0.000915,67216.0,67215.0,0.66803519]
[1729664290436,0.000915,67216.0,67215.0,0.81699434]
[1729664290649,0.000915,67216.0,67215.0,0.64119434]
[1729664295290,0.009258,67222.0,67221.0,0.005]
[1729664295508,0.009258,67222.0,67221.0,0.27296915]
[1729664295722,0.009258,67222.0,67221.0,0.34887167]
[1729664295939,0.100658,67222.0,67221.0,0.34887167]
[1729664298438,0.094658,67222.0,67221.0,0.34887167]
[1729664298655,0.094658,67222.0,67221.0,0.35458217]
[1729664298895,0.003258,67222.0,67221.0,0.68747248]
[1729664299112,0.003258,67222.0,67221.0,0.46383721]
[1729664299808,0.003258,67222.0,67221.0,0.35458217]
[1729664301863,0.003258,67222.0,67221.0,0.27867965]
[1729664304166,0.003258,67222.0,67221.0,0.28032965]
[1729664304394,0.095483,67222.0,67221.0,0.27461915]
[1729664307660,0.095483,67222.0,67221.0,0.15560915]
[1729664307661,0.20473804,67222.0,67221.0,0.15560915]
[1729664308125,0.09766523,67222.0,67221.0,0.15560915]
[1729664309034,0.09766523,67222.0,67221.0,0.15060915]
[1729664309729,0.20692027,67222.0,67221.0,0.00165]
[1729664310636,0.40452827,67222.0,67221.0,0.00165]
[1729664310868,0.29527323,67222.0,67221.0,0.00165]
[1729664311087,0.33977197,67222.0,67221.0,0.00165]
[1729664315951,0.36202135,67222.0,67221.0,0.00165]
[1729664316188,0.36205461,67222.0,67221.0,0.00165]
[1729664316412,0.29527323,67222.0,67221.0,0.00165]
[1729664316638,0.36205506,67222.0,67221.0,0.00165]
[1729664316860,0.24304706,67222.0,67221.0,0.00165]
[1729664317114,0.24304706,67222.0,67221.0,0.12066]
[1729664317332,0.22078542,67222.0,67221.0,0.12066]
[1729664318220,0.05078542,67222.0,67221.0,0.12566]
[1729664318736,0.00626523,67222.0,67221.0,0.12566]
[1729664327890,0.00626523,67222.0,67221.0,0.00665]
[1729664328637,0.00626523,67222.0,67221.0,0.00165]
[1729664328870,0.12527323,67222.0,67221.0,0.00165]
[1729664331177,0.22167323,67222.0,67221.0,0.00165]
[1729664331396,0.10266523,67222.0,67221.0,0.00165]
[1729664332323,0.14719972,67222.0,67221.0,0.00165]
[1729664332555,0.26620772,67222.0,67221.0,0.00165]
[1729664334190,0.14719972,67222.0,67221.0,0.00165]
[1729664335067,0.14394172,67222.0,67221.0,0.00165]
[1729664336213,0.09940723,67222.0,67221.0,0.00165]
[1729664336911,0.14394172,67222.0,67221.0,0.00165]
[1729664337603,0.09940723,67222.0,67221.0,0.00165]
[1729664338047,0.14394172,67222.0,67221.0,0.00165]
[1729664340196,0.00300723,67222.0,67221.0,0.12066]
[1729664342976,0.04757509,67222.0,67221.0,0.12066]
[1729664343207,0.00300723,67222.0,67221.0,0.12066]
[1729664343654,0.04757853,67222.0,67221.0,0.12066]
[1729664343932,0.04757834,67222.0,67221.0,0.12066]
[1729664344390,0.00300723,67222.0,67221.0,0.12066]
[1729664346231,0.06984666,67222.0,67221.0,0.12066]
[1729664349539,0.06990604,67222.0,67221.0,0.12066]
[1729664349910,0.00300723,67222.0,67221.0,0.12066]
[1729664350287,0.00300723,67222.0,67221.0,0.12566]
[1729664350499,0.06990604,67222.0,67221.0,0.12566]
[1729664350960,0.00300723,67222.0,67221.0,0.12566]
[1729664351175,0.06990604,67222.0,67221.0,0.12566]
[1729664351836,0.00300723,67222.0,67221.0,0.12566]
[1729664353879,0.06990604,67222.0,67221.0,0.12566]
[1729664354098,0.00300723,67222.0,67221.0,0.12566]
[1729664354336,0.0476183,67222.0,67221.0,0.12566]
[1729664355627,0.00300723,67222.0,67221.0,0.12566]
[1729664356088,0.04761741,67222.0,67221.0,0.12566]
[1729664356514,0.04761741,67222.0,67221.0,0.27461915]
[1729664356780,0.00300723,67222.0,67221.0,0.27461915]
[1729664359510,0.00300723,67222.0,67221.0,0.52518687]
[1729664359736,0.000825,67222.0,67221.0,0.52518687]
[1729664360211,0.000825,67222.0,67221.0,0.45011915]
[1729664362443,0.000825,67222.0,67221.0,0.55937419]
[1729664363843,0.000825,67222.0,67221.0,0.65937419]
[1729664364095,0.000825,67222.0,67221.0,0.77862923]
[1729664367025,0.000825,67222.0,67221.0,0.66937419]
[1729664367255,0.000825,67222.0,67221.0,0.89376104]
[1729664369805,0.000825,67222.0,67221.0,0.784506]
[1729664370265,0.000825,67222.0,67221.0,0.89376104]
[1729664371389,0.000825,67222.0,67221.0,0.784506]
[1729664372769,0.000825,67222.0,67221.0,0.89376104]
[1729664373200,0.000825,67222.0,67221.0,0.784506]
[1729664378604,0.000825,67222.0,67221.0,0.89376104]
[1729664384749,0.000825,67222.0,67221.0,0.784506]
[1729664385317,0.000825,67222.0,67221.0,0.89376104]
[1729664389127,0.000825,67222.0,67221.0,0.67525096]
[1729664389554,0.000825,67222.0,67221.0,0.691906]
[1729664390230,0.000825,67222.0,67221.0,0.686906]
[1729664390452,0.000825,67222.0,67221.0,0.37961915]
[1729664411362,0.000825,67222.0,67221.0,0.66407419]
[1729664411592,0.000825,67222.0,67221.0,0.66907419]
[1729664416410,0.000825,67222.0,67221.0,0.77832923]
[1729664416634,0.000825,67222.0,67221.0,0.90999291]
[1729664420094,0.000825,67222.0,67221.0,0.94299291]
[1729664420521,0.000825,67222.0,67221.0,0.94499291]
[1729664420792,0.000825,67222.0,67221.0,0.94299291]
[1729664421005,0.000825,67222.0,67221.0,1.05224795]
[1729664421260,0.000825,67222.0,67221.0,1.096668]
[1729664421485,0.000825,67222.0,67221.0,0.98741296]
[1729664421714,0.000825,67222.0,67221.0,0.9873809]
[1729664422356,0.000825,67222.0,67221.0,0.94299291]
[1729664422788,0.000825,67222.0,67221.0,0.94499291]
[1729664423249,0.000825,67222.0,67221.0,0.94299291]
[1729664428251,0.000825,67222.0,67221.0,0.94499291]
[1729664428467,0.000825,67222.0,67221.0,0.94299291]
[1729664428671,0.000825,67222.0,67221.0,1.00957489]
[1729664429373,0.000825,67222.0,67221.0,0.94299291]
[1729664430498,0.000825,67222.0,67221.0,0.98732269]
[1729664431236,0.000825,67222.0,67221.0,0.94299291]
[1729664432318,0.000825,67222.0,67221.0,0.98731368]
[1729664434204,0.000825,67222.0,67221.0,0.96431368]
[1729664434410,0.000825,67222.0,67221.0,0.91999291]
[1729664436948,0.000825,67222.0,67221.0,0.70148283]
[1729664437161,0.000825,67222.0,67221.0,0.91999291]
[1729664437619,0.000825,67222.0,67221.0,0.57937419]
[1729664437846,0.000825,67222.0,67221.0,0.50387419]
[1729664438072,0.000825,67222.0,67221.0,0.61312923]
[1729664441676,0.000825,67222.0,67221.0,0.28461915]
[1729664441916,0.00277813,67222.0,67221.0,0.39387419]
[1729664442151,0.000825,67222.0,67221.0,0.50500952]
[1729664442610,0.000825,67222.0,67221.0,0.39575448]
[1729664442833,0.000825,67222.0,67221.0,0.50500952]
[1729664443252,0.000825,67222.0,67221.0,0.60000952]
[1729664443483,0.000825,67222.0,67221.0,0.48887419]
[1729664446584,0.000825,67222.0,67221.0,0.59812923]
[1729664447029,0.000825,67222.0,67221.0,0.48887419]
[1729664447245,0.000825,67222.0,67221.0,0.59812923]
[1729664447481,0.000825,67222.0,67221.0,0.48887419]
[1729664447694,0.000825,67222.0,67221.0,0.61956952]
[1729664448373,0.000825,67222.0,67221.0,0.72882456]
[1729664448588,0.000825,67222.0,67221.0,0.61956952]
[1729664448815,0.000825,67222.0,67221.0,0.72882456]
[1729664450352,0.000825,67222.0,67221.0,0.61956952]
[1729664450781,0.000825,67222.0,67221.0,0.72882456]
[1729664451217,0.000825,67222.0,67221.0,0.61956952]
[1729664452098,0.000825,67222.0,67221.0,0.72882456]
[1729664452829,0.000825,67222.0,67221.0,0.61956952]
[1729664455218,0.000825,67222.0,67221.0,0.72882456]
[1729664455648,0.000825,67222.0,67221.0,0.61956952]
[1729664456314,0.000825,67222.0,67221.0,0.72882456]
[1729664456728,0.000825,67222.0,67221.0,0.51031448]
[1729664456952,0.000825,67222.0,67221.0,0.61956952]
[1729664457183,0.000825,67222.0,67221.0,0.48887419]
[1729664457401,0.000825,67222.0,67221.0,0.37961915]
[1729664459215,0.000825,67222.0,67221.0,0.36961915]
[1729664459216,0.097225,67222.0,67221.0,0.36961915]
[1729664459431,0.097225,67222.0,67221.0,0.22066]
[1729664459432,0.178525,67222.0,67221.0,0.22066]
[1729664459643,0.1804532,67222.0,67221.0,0.22066]
[1729664460601,0.1804532,67222.0,67221.0,0.23066]
[1729664461281,0.178525,67222.0,67221.0,0.23066]
[1729664461783,0.178525,67222.0,67221.0,0.37961915]
[1729664477445,0.097225,67222.0,67221.0,0.37961915]
[1729664477899,0.000825,67222.0,67221.0,0.37961915]
[1729664484732,0.000825,67222.0,67221.0,0.48887419]
[1729664484959,0.000825,67222.0,67221.0,0.58507419]
[1729664485645,0.00064596,67222.0,67221.0,0.58507419]
[1729664488406,0.00064596,67222.0,67221.0,0.59077996]
[1729664496243,0.00064596,67222.0,67221.0,0.49457996]
[1729664496723,0.00064596,67222.0,67221.0,0.38532492]
[1729664510917,0.00064596,67222.0,67221.0,0.49457996]
[1729664519760,0.00064596,67222.0,67221.0,0.22066]
[1729664520197,0.00257296,67222.0,67221.0,0.22066]
[1729664520418,0.00064596,67222.0,67221.0,0.22066]
[1729664525510,0.00257156,67222.0,67221.0,0.22066]
[1729664525771,0.00064596,67222.0,67221.0,0.22066]
[1729664525981,0.00257156,67222.0,67221.0,0.22066]
[1729664526209,0.00064596,67222.0,67221.0,0.22066]
[1729664526429,0.00257156,67222.0,67221.0,0.22066]
[1729664526654,0.00064596,67222.0,67221.0,0.22066]
[1729664526877,0.00257157,67222.0,67221.0,0.22066]
[1729664527108,0.00064596,67222.0,67221.0,0.22066]
[1729664527330,0.00257157,67222.0,67221.0,0.22066]
[1729664527549,0.00064596,67222.0,67221.0,0.22066]
[1729664527771,0.00257157,67222.0,67221.0,0.22066]